bitfinex/quotes_SOLUSD_20250818
["timestamp","ask_amount","ask_price","bid_price","bid_amount"]
[1755536182871,1e-08,182.48,182.47,21.58568664]
[1755536183896,1e-08,182.48,182.47,20.91568664]
[1755536184197,1e-08,182.48,182.47,26.39603957]
[1755536184404,1e-08,182.48,182.47,65.95603957]
[1755536184589,0.71000001,182.48,182.47,65.95603957]
[1755536185998,0.71000001,182.48,182.47,60.1465685]
[1755536186190,0.71000001,182.48,182.47,45.04035293]
[1755536186398,0.71000001,182.48,182.46,5.48061476]
[1755536186575,0.71000001,182.48,182.47,39.56]
[1755536187676,1e-08,182.48,182.47,39.56]
[1755536187897,1e-08,182.48,182.47,60.47568664]
[1755536188083,1e-08,182.48,182.47,65.95603957]
[1755536188397,1e-08,182.48,182.47,66.62603957]
[1755536189597,1e-08,182.48,182.47,65.95603957]
[1755536189975,1e-08,182.48,182.47,65.93603957]
[1755536191178,0.71000001,182.48,182.47,5.48035293]
[1755536191590,0.71000001,182.48,182.47,45.02035293]
[1755536194094,1e-08,182.48,182.47,45.02035293]
[1755536194490,1e-08,182.48,182.47,60.1265685]
[1755536194699,1e-08,182.48,182.47,88.33603957]
[1755536195889,0.71000001,182.48,182.47,67.42035293]
[1755536196808,1e-08,182.48,182.47,88.33603957]
[1755536197714,1e-08,182.48,182.47,42.9865685]
[1755536197890,1e-08,182.48,182.47,82.5065685]
[1755536198213,5.80947108,182.48,182.45,5.48095368]
[1755536198391,5.80947107,182.46,182.45,5.48095368]
[1755536198593,6.50947107,182.46,182.45,39.52]
[1755536199690,6.50947107,182.46,182.44,39.52]
[1755536199890,6.50947107,182.45,182.43,39.52]
[1755536200109,6.50947107,182.44,182.43,39.52]
[1755536202317,6.50947107,182.44,182.43,45.00155456]
[1755536202915,6.50947107,182.46,182.43,45.00155456]
[1755536203216,5.80947107,182.47,182.43,45.00155456]
[1755536203421,6.50947107,182.46,182.43,45.00155456]
[1755536203721,0.7,182.45,182.43,67.40155456]
[1755536203918,5.80947107,182.45,182.43,27.88155456]
[1755536204211,0.7,182.44,182.43,27.88155456]
[1755536204412,0.7,182.44,182.43,67.38155456]
[1755536204613,1e-08,182.48,182.43,67.38155456]
[1755536204817,5.80947107,182.47,182.43,68.05155456]
[1755536205120,0.7,182.46,182.43,67.38155456]
[1755536205429,6.50947107,182.46,182.43,67.38155456]
[1755536206107,5.80947107,182.47,182.43,67.38155456]
[1755536206506,6.50947107,182.47,182.43,67.38155456]
[1755536208517,5.80947107,182.45,182.43,67.38155456]
[1755536208718,6.50947107,182.44,182.41,0.03]
[1755536209017,5.80947107,182.42,182.41,0.03]
[1755536209401,6.50947107,182.42,182.41,0.03]
[1755536209626,6.50947107,182.42,182.41,5.51215558]
[1755536209798,6.50947107,182.42,182.41,0.03]
[1755536211617,5.80947107,182.42,182.41,0.03]
[1755536213618,6.50947107,182.42,182.41,0.03]
[1755536215423,11.99132612,182.42,182.41,0.03]
[1755536216004,15.97829394,182.42,182.41,0.03]
[1755536217142,20.40843491,182.42,182.41,0.03]
[1755536217444,26.0,182.39,182.38,0.03]
[1755536217656,43.10169887,182.39,182.38,0.03]
[1755536217840,43.80169887,182.39,182.38,0.03]
[1755536218041,37.9922278,182.39,182.38,0.03]
[1755536220479,26.7,182.39,182.38,0.03]
[1755536220635,0.7,182.42,182.38,0.03]
[1755536220823,5.80947107,182.41,182.38,0.75]
[1755536221031,5.80947107,182.41,182.38,0.03]
[1755536221336,5.80947107,182.4,182.39,0.03]
[1755536221726,6.50947107,182.4,182.39,0.03]
[1755536221927,5.80947107,182.4,182.39,0.03]
[1755536224452,6.50947107,182.4,182.39,0.03]
[1755536224851,37.99192721,182.4,182.39,0.03]
[1755536225157,55.0519815,182.4,182.39,0.03]
[1755536227643,60.86145257,182.4,182.39,0.03]
[1755536227849,60.86145257,182.4,182.38,0.03]
[1755536228172,15.89899643,182.39,182.38,0.03]
[1755536228676,10.08952536,182.39,182.38,0.03]
[1755536229180,15.89899643,182.39,182.38,0.03]
[1755536229672,21.38175316,182.39,182.38,0.03]
[1755536230475,15.57228209,182.39,182.38,0.03]
[1755536231381,21.38175316,182.39,182.37,0.03]
[1755536231548,15.89899643,182.38,182.37,0.03]
[1755536231749,21.38205378,182.38,182.37,0.03]
[1755536231960,26.0,182.36,182.35,0.03]
[1755536232156,74.86952536,182.36,182.35,0.03]
[1755536232358,75.56952536,182.36,182.35,0.03]
[1755536233779,81.05318405,182.36,182.35,0.03]
[1755536235574,74.86952536,182.36,182.35,0.03]
[1755536235960,80.35318405,182.36,182.35,0.03]
[1755536236775,76.77312976,182.36,182.35,0.03]
[1755536237560,80.35407794,182.36,182.35,0.03]
[1755536238985,29.58094818,182.36,182.35,0.74]
[1755536239201,19.80262451,182.42,182.35,0.74]
[1755536239202,5.80947107,182.37,182.35,0.74]
[1755536239492,45.26947107,182.38,182.35,0.74]
[1755536240084,5.80947107,182.41,182.36,5.80947107]
[1755536240386,9.39810402,182.43,182.37,6.51947107]
[1755536240560,5.80947107,182.43,182.38,6.51947107]
[1755536240762,5.80947107,182.43,182.39,6.19275673]
[1755536240763,9.39810402,182.43,182.39,6.19275673]
[1755536240981,35.39810402,182.43,182.39,5.48275673]
[1755536241185,3.58863295,182.42,182.4,0.71]
[1755536241382,3.58863295,182.42,182.39,5.48275673]
[1755536241563,3.58863295,182.42,182.41,0.71]
[1755536241969,3.58863295,182.42,182.41,6.19215558]
[1755536242168,3.58863295,182.44,182.41,12.00162665]
[1755536242488,0.06,182.45,182.42,0.71]
[1755536242662,5.80947107,182.44,182.42,0.71]
[1755536243565,5.80947107,182.43,182.41,5.48215558]
[1755536243775,5.80947107,182.43,182.41,6.19215558]
[1755536243970,5.80947107,182.42,182.39,0.71]
[1755536244265,5.80947107,182.42,182.4,0.71]
[1755536244666,9.39810402,182.43,182.41,0.71]
[1755536244873,5.80947107,182.43,182.41,0.71]
[1755536245082,5.80947107,182.43,182.42,0.71]
[1755536245486,3.64863295,182.45,182.42,0.71]
[1755536245659,9.45810402,182.45,182.43,5.48155456]
[1755536245855,9.45810402,182.45,182.44,0.71]
[1755536246085,9.45810402,182.45,182.43,5.48155456]
[1755536246266,5.80947107,182.44,182.42,0.71]
[1755536246683,3.64863295,182.45,182.42,0.71]
[1755536246900,5.80947107,182.44,182.42,0.71]
[1755536247492,5.80947107,182.44,182.42,5.48171318]
[1755536247870,5.80947107,182.44,182.41,5.48215558]
[1755536248070,5.80947107,182.44,182.41,6.19215558]
[1755536248486,5.80947107,182.43,182.41,6.19215558]
[1755536248679,5.80947107,182.42,182.39,0.71]
[1755536248897,5.80947107,182.42,182.39,6.19275673]
[1755536249202,5.80947107,182.42,182.4,0.71]
[1755536249696,5.80947107,182.41,182.39,5.48275673]
[1755536250396,3.58863295,182.43,182.4,0.71]
[1755536250397,9.39810402,182.43,182.4,0.71]
[1755536250699,5.80947107,182.43,182.41,0.71]
[1755536250898,3.58863295,182.44,182.42,0.71]
[1755536251096,3.64863295,182.45,182.42,0.71]
[1755536251307,3.64863295,182.45,182.43,0.71]
[1755536251604,3.64863295,182.45,182.44,0.71]
[1755536252173,3.64863295,182.45,182.43,5.48137921]
[1755536252472,9.45810402,182.45,182.43,6.19137921]
[1755536252873,3.64863295,182.45,182.43,6.19137921]
[1755536253282,9.45810402,182.45,182.43,6.19137921]
[1755536254300,9.45810402,182.45,182.44,0.71]
[1755536254301,3.64863295,182.45,182.44,0.71]
[1755536254499,0.06,182.45,182.44,0.71]
[1755536255882,0.06,182.45,182.41,24.9970156]
[1755536256080,0.06,182.45,182.42,0.71]
[1755536256283,0.06,182.45,182.43,5.48155456]
[1755536256499,0.06,182.45,182.43,6.19155456]
[1755536256697,0.06,182.45,182.44,0.71]
[1755536257791,0.06,182.45,182.44,6.19125411]
[1755536259715,0.06,182.45,182.44,28.59125411]
[1755536260093,0.06,182.47,182.45,15.10621557]
[1755536260304,0.06,182.47,182.46,5.80947107]
[1755536260512,0.06,182.47,182.46,6.47947107]
[1755536260891,0.06,182.47,182.46,0.67]
[1755536262518,0.06,182.47,182.46,6.15065329]
[1755536263092,6.54947107,182.47,182.43,0.67]
[1755536263397,5.80947107,182.46,182.44,0.67]
[1755536263600,0.06,182.47,182.45,0.67]
[1755536263991,0.06,182.47,182.46,0.67]
[1755536264603,0.06,182.47,182.46,6.15065329]
[1755536266006,0.06,182.47,182.46,11.96012436]
[1755536266325,0.06,182.47,182.46,6.15065329]
[1755536269227,1e-08,182.47,182.46,53.61440525]
[1755536269650,1e-08,182.47,182.46,55.81045825]
[1755536273237,1e-08,182.49,182.46,55.81045825]
[1755536273443,1e-08,182.5,182.49,15.10621557]
[1755536273653,1e-08,182.5,182.49,60.27568664]
[1755536273836,1e-08,182.5,182.49,63.14149764]
[1755536274860,1e-08,182.5,182.49,54.46621557]
[1755536275435,1e-08,182.5,182.49,65.75543895]
[1755536276364,1e-08,182.5,182.49,66.42543895]
[1755536276669,1e-08,182.5,182.49,60.61596788]
[1755536276864,1e-08,182.5,182.49,66.42543895]
[1755536277564,1e-08,182.5,182.49,88.82543895]
[1755536279084,1e-08,182.5,182.49,88.15543895]
[1755536279257,1e-08,182.5,182.49,88.82543895]
[1755536279443,1e-08,182.5,182.49,83.01596788]
[1755536279646,1e-08,182.5,182.49,88.82543895]
[1755536280049,1e-08,182.51,182.5,5.80947107]
[1755536280247,1e-08,182.51,182.5,6.47947107]
[1755536281145,1e-08,182.51,182.5,11.95892312]
[1755536282763,1e-08,182.51,182.5,11.28892312]
[1755536283060,1e-08,182.51,182.5,50.60892312]
[1755536283373,1e-08,182.54,182.53,26.0]
[1755536283671,9.41254584,182.64,182.56,41.10621557]
[1755536283865,0.68,182.6,182.56,65.36]
[1755536284064,0.68,182.6,182.56,86.27568664]
[1755536284263,0.68,182.6,182.57,15.10621557]
[1755536284458,3.60326809,182.63,182.59,5.80947107]
[1755536284671,0.68,182.62,182.6,39.36]
[1755536285050,3.60326809,182.65,182.59,39.36]
[1755536285271,10.09273916,182.64,182.6,5.47645125]
[1755536285585,0.68,182.63,182.61,45.16947107]
[1755536285758,6.48947107,182.63,182.6,44.81645125]
[1755536286073,0.68,182.62,182.6,44.81645125]
[1755536287766,0.72,182.61,182.6,44.81645125]
[1755536288648,0.06,182.62,182.6,44.81645125]
[1755536288876,0.78,182.62,182.6,44.81645125]
[1755536289376,0.78,182.62,182.6,67.21645125]
[1755536291555,6.52947107,182.61,182.58,22.4]
[1755536291755,5.80947107,182.59,182.58,22.4]
[1755536291971,5.80947107,182.6,182.58,27.87705115]
[1755536292196,9.46628545,182.62,182.58,67.87705115]
[1755536292371,6.52947107,182.61,182.58,67.19705115]
[1755536292572,5.86947107,182.62,182.58,67.19705115]
[1755536292883,0.78,182.62,182.58,73.68652222]
[1755536293079,0.78,182.62,182.58,67.87705115]
[1755536293384,6.58947107,182.62,182.58,67.87705115]
[1755536293779,0.78,182.62,182.58,67.87705115]
[1755536293977,6.52947107,182.61,182.58,67.19705115]
[1755536294181,6.52947107,182.6,182.58,27.87705115]
[1755536294382,5.80947107,182.6,182.58,27.87705115]
[1755536294583,6.52947107,182.59,182.58,22.4]
[1755536295196,6.52947107,182.59,182.57,22.4]
[1755536295389,6.52947107,182.58,182.57,22.4]
[1755536295867,6.52947107,182.58,182.55,5.47785433]
[1755536296075,5.80947107,182.56,182.54,44.77816816]
[1755536296274,6.52947107,182.56,182.54,44.77816816]
[1755536296701,6.52947107,182.56,182.54,5.47816816]
[1755536296913,6.52947107,182.55,182.54,5.47816816]
[1755536297219,6.52947107,182.55,182.51,5.47889977]
[1755536297513,5.80947107,182.52,182.51,5.47889977]
[1755536297669,5.80947107,182.53,182.51,5.47889977]
[1755536298099,6.52947107,182.52,182.5,0.03]
[1755536298292,5.80947107,182.51,182.5,0.03]
[1755536298601,6.52947107,182.51,182.5,0.03]
[1755536298796,0.72,182.51,182.5,0.03]
[1755536298998,6.52947107,182.51,182.5,0.03]
[1755536301517,12.00862289,182.51,182.5,0.03]
[1755536302230,17.81809396,182.51,182.5,0.03]
[1755536302606,26.0,182.49,182.48,0.03]
[1755536302934,37.61894214,182.49,182.48,0.03]
[1755536303241,38.33894214,182.49,182.48,0.03]
[1755536303534,38.00922338,182.49,182.48,0.03]
[1755536305244,43.81869445,182.49,182.46,0.03]
[1755536305534,5.80947107,182.47,182.46,0.03]
[1755536305904,6.52947107,182.47,182.46,0.03]
[1755536310143,5.80947107,182.47,182.46,0.03]
[1755536310327,5.80947107,182.48,182.46,0.03]
[1755536310703,31.80947107,182.47,182.46,0.03]
[1755536313505,15.10621557,182.57,182.46,23.11]
[1755536313738,5.80947107,182.52,182.47,0.68]
[1755536313924,45.53765118,182.56,182.48,5.80947107]
[1755536313925,5.80947107,182.53,182.48,5.80947107]
[1755536314342,5.80947107,182.53,182.49,0.68]
[1755536314532,5.80947107,182.53,182.5,0.68]
[1755536314730,6.52947107,182.53,182.48,6.48947107]
[1755536314922,6.52947107,182.53,182.49,0.68]
[1755536315240,5.80947107,182.53,182.49,0.68]
[1755536315540,31.80947107,182.53,182.49,5.47966022]
[1755536315723,32.52947107,182.53,182.49,6.15966022]
[1755536315926,31.80947107,182.53,182.49,5.47966022]
[1755536316144,31.80947107,182.53,182.5,0.68]
[1755536316641,31.80947107,182.53,182.5,6.15941848]
[1755536316836,31.80947107,182.53,182.5,5.47941848]
[1755536317044,32.52947107,182.53,182.5,5.47941848]
[1755536317247,31.80947107,182.53,182.5,5.47941848]
[1755536317436,26.0,182.53,182.48,0.68]
[1755536317635,26.0,182.53,182.46,0.03]
[1755536317636,5.80947107,182.49,182.46,0.03]
[1755536317842,5.80947107,182.47,182.46,0.03]
[1755536318533,5.80947107,182.48,182.46,0.03]
[1755536319545,6.47947107,182.48,182.46,0.03]
[1755536320352,5.80947107,182.47,182.46,0.03]
[1755536321153,6.47947107,182.47,182.46,0.03]
[1755536323431,5.80947107,182.47,182.46,0.03]
[1755536323632,6.47947107,182.47,182.46,0.03]
[1755536324042,5.80947107,182.47,182.46,0.03]
[1755536325673,6.47947107,182.47,182.46,0.03]
[1755536326259,5.80947107,182.47,182.46,0.03]
[1755536326935,6.47947107,182.47,182.46,0.03]
[1755536327140,11.959824,182.47,182.46,0.03]
[1755536327640,6.47947107,182.47,182.46,0.03]
[1755536328140,11.959824,182.47,182.46,0.03]
[1755536328460,5.80947107,182.47,182.46,0.03]
[1755536329056,6.47947107,182.47,182.46,0.03]
[1755536329383,5.80947107,182.47,182.46,0.03]
[1755536330558,6.47947107,182.47,182.46,0.03]
[1755536331184,5.80947107,182.47,182.46,0.03]
[1755536331562,31.80947107,182.47,182.46,0.03]
[1755536331760,31.80947107,182.47,182.46,0.7]
[1755536331958,31.80947107,182.47,182.46,0.03]
[1755536333882,32.47947107,182.47,182.46,0.03]
[1755536334896,37.959824,182.47,182.46,0.03]
[1755536336663,32.47947107,182.47,182.46,0.03]
[1755536338286,77.279824,182.47,182.46,0.03]
[1755536339277,80.89774487,182.47,182.46,0.03]
[1755536340185,74.74739194,182.47,182.46,0.03]
[1755536340391,71.12947107,182.47,182.46,0.03]
[1755536340575,74.75051231,182.47,182.46,0.03]
[1755536342505,78.7797174,182.47,182.46,0.03]
[1755536342868,78.77984601,182.47,182.46,0.03]
[1755536343596,84.93019894,182.47,182.46,0.03]
[1755536345284,84.93771543,182.47,182.46,0.03]
[1755536351188,80.90086524,182.47,182.46,0.03]
[1755536351386,84.93982926,182.47,182.46,0.03]
[1755536352019,84.93955186,182.47,182.46,0.03]
[1755536352371,58.93954528,182.47,182.46,0.03]
[1755536353703,58.26954528,182.47,182.46,0.03]
[1755536354208,52.78919235,182.47,182.46,0.03]
[1755536354612,52.78891838,182.47,182.46,0.03]
[1755536354776,46.97944731,182.47,182.46,0.03]
[1755536354978,52.78891838,182.47,182.46,0.71]
[1755536355902,52.78891838,182.47,182.46,0.03]
[1755536356410,58.92927131,182.47,182.46,0.03]
[1755536358091,52.78891838,182.47,182.46,0.03]
[1755536359129,53.44891838,182.47,182.46,0.03]
[1755536359329,52.78891838,182.47,182.46,0.03]
[1755536359824,58.26927131,182.47,182.46,0.03]
[1755536360010,58.92927131,182.47,182.46,0.03]
[1755536360385,46.97944731,182.47,182.46,0.03]
[1755536360587,7.658779,182.47,182.46,0.71]
[1755536360819,46.95897485,182.47,182.46,0.71]
[1755536361017,7.65897485,182.47,182.46,0.71]
[1755536361188,4.03793361,182.47,182.46,0.71]
[1755536362013,0.06,182.48,182.46,6.51947107]
[1755536362190,0.06,182.48,182.47,5.80947107]
[1755536362387,0.06,182.48,182.47,0.68]
[1755536362591,13.54893558,182.48,182.46,0.03]
[1755536362788,13.48872953,182.47,182.46,0.03]
[1755536363312,13.48872953,182.47,182.46,0.71]
[1755536365013,7.67925846,182.47,182.46,0.71]
[1755536365199,7.67925846,182.47,182.46,6.51947107]
[1755536365510,0.06,182.48,182.46,6.51947107]
[1755536365685,0.06,182.48,182.47,6.48947107]
[1755536365886,4.10218244,182.48,182.47,6.48947107]
[1755536366094,0.06,182.48,182.47,6.48947107]
[1755536366923,0.06,182.48,182.47,0.68]
[1755536367999,5.86947107,182.48,182.46,0.03]
[1755536368212,5.86947107,182.48,182.46,0.71]
[1755536369020,0.06,182.48,182.46,0.71]
[1755536370331,0.06,182.48,182.46,0.03]
[1755536370519,0.06,182.48,182.47,0.68]
[1755536370728,7.73295638,182.48,182.47,0.68]
[1755536371627,7.73295638,182.48,182.46,0.03]
[1755536371830,0.06,182.48,182.46,0.71]
[1755536372026,14.14139912,182.47,182.46,0.03]
[1755536372930,14.14193373,182.47,182.46,0.03]
[1755536374028,13.48193373,182.47,182.46,0.03]
[1755536375139,14.14193373,182.47,182.46,0.03]
[1755536375817,18.64006754,182.47,182.46,0.03]
[1755536377932,14.14189592,182.47,182.46,0.03]
[1755536378916,14.1401593,182.47,182.46,0.03]
[1755536380922,26.0,182.46,182.45,0.03]
[1755536381233,79.4301593,182.46,182.45,0.03]
[1755536384417,75.79601718,182.46,182.45,0.03]
[1755536384731,79.42881651,182.46,182.45,0.03]
[1755536387640,78.75881651,182.46,182.45,0.03]
[1755536388019,74.7222704,182.46,182.45,0.03]
[1755536388216,78.75577591,182.46,182.45,0.03]
[1755536388731,52.75686717,182.46,182.45,0.75]
[1755536389443,52.75686717,182.46,182.45,0.03]
[1755536390154,0.6107965,182.45,182.44,0.03]
[1755536390439,14.08766367,182.45,182.44,0.03]
[1755536391954,14.75766367,182.45,182.44,0.03]
[1755536392441,14.08766367,182.45,182.44,0.03]
[1755536396242,14.75766367,182.45,182.44,0.03]
[1755536396929,14.75766367,182.45,182.43,0.03]
[1755536397130,26.0,182.42,182.41,0.03]
[1755536397450,78.75650551,182.42,182.41,0.03]
[1755536397757,79.42650551,182.42,182.41,0.03]
[1755536397929,79.42691111,182.42,182.41,0.03]
[1755536398128,79.42669723,182.42,182.41,0.03]
[1755536399422,75.7938979,182.42,182.41,0.03]
[1755536400149,75.791163,182.42,182.41,0.03]
[1755536401262,79.42320715,182.42,182.41,0.03]
[1755536403635,94.52942272,182.42,182.41,0.03]
[1755536403838,5.80947107,182.41,182.39,0.03]
[1755536404147,52.75320715,182.4,182.39,0.03]
[1755536404539,53.42320715,182.4,182.39,0.03]
[1755536404855,26.0,182.38,182.37,0.03]
[1755536405156,89.08273341,182.38,182.33,0.03]
[1755536405351,31.80947107,182.36,182.33,0.03]
[1755536405659,78.72663495,182.36,182.33,0.03]
[1755536406026,39.46663495,182.36,182.33,0.03]
[1755536406354,39.46663495,182.36,182.35,0.75]
[1755536406355,78.74663495,182.36,182.35,0.75]
[1755536406657,5.80947107,182.36,182.35,0.75]
[1755536406833,5.80947107,182.39,182.35,0.75]
[1755536407036,45.08947107,182.39,182.35,0.75]
[1755536407234,39.28,182.39,182.35,0.75]
[1755536407455,45.08947107,182.39,182.35,0.75]
[1755536407636,5.80947107,182.38,182.35,0.75]
[1755536408037,3.62348622,182.39,182.35,0.75]
[1755536408038,9.43295729,182.39,182.35,0.75]
[1755536408230,26.0,182.41,182.35,6.55947107]
[1755536408231,31.80947107,182.41,182.35,6.55947107]
[1755536408546,39.28,182.42,182.38,5.80947107]
[1755536408733,45.08947107,182.43,182.38,5.80947107]
[1755536409053,7.65130397,182.42,182.39,0.67]
[1755536409355,3.62498563,182.42,182.39,0.67]
[1755536409540,45.06947107,182.43,182.39,0.67]
[1755536410860,0.6107965,182.45,182.42,5.80947107]
[1755536411157,0.6107965,182.45,182.43,6.47947107]
[1755536411457,4.64142357,182.45,182.44,0.67]
[1755536411861,10.45089464,182.45,182.41,0.67]
[1755536412164,5.80947107,182.43,182.41,0.67]
[1755536412338,5.80947107,182.43,182.42,0.67]
[1755536412852,5.80947107,182.43,182.4,0.67]
[1755536413028,39.26,182.44,182.38,5.80947107]
[1755536413231,13.47215692,182.43,182.41,0.67]
[1755536413451,9.43970954,182.43,182.41,0.67]
[1755536413647,9.84049175,182.42,182.39,0.67]
[1755536413832,3.63023847,182.43,182.39,0.67]
[1755536413833,5.80947107,182.41,182.39,0.67]
[1755536414041,5.80947107,182.41,182.4,0.67]
[1755536414246,4.03148988,182.41,182.4,0.67]
[1755536414751,4.03280883,182.41,182.4,0.67]
[1755536414954,9.8422799,182.41,182.38,0.67]
[1755536415151,5.80947107,182.39,182.36,0.67]
[1755536415454,5.80947107,182.37,182.35,0.03]
[1755536415655,9.43970954,182.39,182.36,0.67]
[1755536415857,5.80947107,182.39,182.36,0.67]
[1755536416157,9.43970954,182.39,182.37,0.67]
[1755536416360,9.43970954,182.4,182.38,0.67]
[1755536416654,4.03323674,182.39,182.35,5.83947107]
[1755536416841,9.84270781,182.39,182.35,0.03]
[1755536417042,13.47363344,182.38,182.35,0.03]
[1755536417364,5.80947107,182.38,182.36,0.67]
[1755536417757,9.44060193,182.38,182.35,0.03]
[1755536417943,5.80947107,182.37,182.35,0.03]
[1755536418669,3.63113086,182.38,182.36,0.67]
[1755536418837,5.80947107,182.39,182.37,0.67]
[1755536419164,9.44221837,182.39,182.35,0.7]
[1755536419368,9.44221837,182.39,182.36,0.67]
[1755536419544,31.80947107,182.41,182.37,0.67]
[1755536419743,7.67062207,182.4,182.36,5.80947107]
[1755536419944,4.03669247,182.39,182.38,0.67]
[1755536420143,4.03669247,182.39,182.36,0.67]
[1755536420356,5.80947107,182.37,182.35,22.43]
[1755536421260,9.4436855,182.37,182.35,22.43]
[1755536421462,5.80947107,182.37,182.35,23.1]
[1755536421669,9.4436855,182.37,182.35,23.1]
[1755536421964,5.80947107,182.37,182.35,23.1]
[1755536422571,5.80947107,182.37,182.35,22.43]
[1755536423163,3.63481736,182.38,182.35,22.43]
[1755536423363,39.26,182.39,182.35,22.43]
[1755536423364,7.67296751,182.37,182.35,22.43]
[1755536423548,3.63481736,182.38,182.35,22.43]
[1755536423755,7.67296005,182.37,182.35,22.43]
[1755536423957,3.63481736,182.38,182.35,22.43]
[1755536424274,7.67336133,182.37,182.35,23.1]
[1755536424574,3.63481736,182.38,182.35,23.1]
[1755536424871,7.67381082,182.37,182.35,28.90947107]
[1755536425071,3.63481736,182.38,182.35,23.1]
[1755536425282,4.03942562,182.37,182.35,23.1]
[1755536425454,3.63588921,182.38,182.35,6.50947107]
[1755536426977,3.63588921,182.38,182.36,6.47947107]
[1755536427196,3.63588921,182.38,182.36,5.80947107]
[1755536427501,4.75758579,182.37,182.35,0.03]
[1755536427693,3.63410158,182.38,182.35,0.03]
[1755536427897,7.67142459,182.37,182.35,0.03]
[1755536428099,3.63410158,182.38,182.35,0.03]
[1755536428314,13.4809527,182.37,182.35,0.03]
[1755536428486,4.03738005,182.36,182.35,0.03]
[1755536428672,4.75738005,182.36,182.35,0.03]
[1755536429709,4.03738005,182.36,182.35,0.03]
[1755536429909,4.03738005,182.36,182.35,6.50947107]
[1755536430116,4.03738005,182.36,182.35,0.7]
[1755536430410,4.75738005,182.36,182.35,0.03]
[1755536430712,4.03738005,182.36,182.35,0.03]
[1755536432913,4.75489286,182.36,182.35,0.03]
[1755536433113,8.38570191,182.36,182.35,0.03]
[1755536433418,7.66437489,182.36,182.35,0.03]
[1755536433710,4.03367286,182.36,182.35,0.03]
[1755536433919,7.66448191,182.36,182.35,0.03]
[1755536434094,4.03367286,182.36,182.35,0.03]
[1755536435116,4.03367286,182.36,182.35,6.50947107]
[1755536435486,39.24,182.38,182.35,6.50947107]
[1755536435723,4.03193133,182.37,182.36,6.47947107]
[1755536436426,39.96,182.41,182.36,6.47947107]
[1755536436427,3.62890858,182.39,182.36,6.47947107]
[1755536436600,4.0324789,182.38,182.37,26.67]
[1755536436797,3.62946254,182.4,182.37,26.67]
[1755536436998,3.62946254,182.41,182.38,0.67]
[1755536437205,7.6618642,182.4,182.39,0.67]
[1755536437408,4.03240166,182.4,182.39,0.67]
[1755536437810,4.03240166,182.4,182.39,6.47947107]
[1755536438194,4.03240166,182.41,182.39,5.80947107]
[1755536438415,0.06,182.42,182.4,6.47947107]
[1755536438622,0.06,182.42,182.41,5.80947107]
[1755536438824,4.09361169,182.42,182.41,6.47947107]
[1755536439207,4.09358812,182.42,182.41,6.47947107]
[1755536439710,0.06,182.42,182.41,6.47947107]
[1755536439923,0.06,182.42,182.41,21.58568664]
[1755536440220,0.06,182.43,182.42,5.80947107]
[1755536440520,0.06,182.43,182.42,6.47947107]
[1755536440917,0.06,182.43,182.42,21.58568664]
[1755536441422,0.06,182.43,182.42,6.47947107]
[1755536442802,0.6107965,182.45,182.42,7.02765657]
[1755536443014,0.6107965,182.45,182.44,20.91568664]
[1755536443221,0.6107965,182.45,182.44,60.13568664]
[1755536443438,0.6107965,182.45,182.44,60.80568664]
[1755536444909,0.6107965,182.45,182.44,83.20568664]
[1755536445121,0.6107965,182.45,182.44,83.75381205]
[1755536445630,0.6107965,182.45,182.44,61.35381205]
[1755536446412,0.6107965,182.45,182.44,55.54434098]
[1755536446615,0.6107965,182.45,182.44,63.54986505]
[1755536448035,0.06,182.46,182.45,15.10621557]
[1755536448237,0.06,182.48,182.47,41.10621557]
[1755536448431,0.06,182.48,182.47,86.11568664]
[1755536448737,0.06,182.48,182.47,86.78568664]
[1755536448941,0.06,182.48,182.47,88.98161964]